bitfinex-derivatives/quotes_ETHF0:USTF0_20251003
["timestamp","ask_amount","ask_price","bid_price","bid_amount"]
[1759504307026,0.4123,4464.6,4464.5,0.556]
[1759504308030,0.2071,4464.6,4464.5,0.556]
[1759504308230,0.6373,4465.1,4465.0,0.8926]
[1759504309728,0.8951,4465.1,4465.0,0.8926]
[1759504310632,0.6373,4465.1,4465.0,0.8926]
[1759504311137,0.8951,4465.1,4465.0,0.6856]
[1759504312136,1.29791,4465.1,4465.0,0.6856]
[1759504312631,0.6373,4465.1,4465.0,0.6856]
[1759504312934,0.6373,4465.1,4465.0,0.8926]
[1759504313142,1.04011,4465.1,4465.0,0.8926]
[1759504313638,0.6373,4465.1,4465.0,0.8926]
[1759504313840,1.04011,4465.1,4465.0,0.8926]
[1759504314436,0.6373,4465.1,4465.0,0.8926]
[1759504315639,0.225,4465.1,4465.0,0.8926]
[1759504315841,0.2071,4465.1,4465.0,0.8926]
[1759504316033,0.4321,4465.1,4465.0,0.8926]
[1759504316238,0.6373,4465.1,4465.0,0.8926]
[1759504318245,3.20937437,4465.3,4465.1,0.3366]
[1759504318537,3.20937437,4465.3,4465.2,1.1684]
[1759504320042,3.41647437,4465.3,4465.2,0.7656]
[1759504320248,1.07291,4465.1,4465.0,0.3366]
[1759504320545,0.6373,4465.1,4465.0,0.8926]
[1759504320739,0.83491,4465.1,4465.0,0.8926]
[1759504320939,1.04011,4465.1,4465.0,0.8926]
[1759504321246,1.29791,4465.1,4465.0,0.3366]
[1759504322548,0.8951,4465.1,4465.0,0.3366]
[1759504322738,0.8951,4465.1,4465.0,0.6931]
[1759504323134,1.29791,4465.1,4465.0,0.6931]
[1759504323349,1.29791,4465.1,4465.0,0.3366]
[1759504324844,0.4828,4465.1,4464.6,0.224]
[1759504325043,3.8809,4464.7,4464.6,0.5354]
[1759504325350,3.8481,4464.7,4464.6,0.5354]
[1759504325547,4.1059,4464.7,4464.6,0.5354]
[1759504325748,3.8481,4464.7,4464.6,0.5354]
[1759504325943,3.8481,4464.7,4464.6,0.7477]
[1759504327548,4.1059,4464.7,4464.6,0.5354]
[1759504327745,4.50875,4464.7,4464.6,0.5354]
[1759504328050,4.1059,4464.7,4464.6,0.5354]
[1759504328251,3.8481,4464.7,4464.6,0.7477]
[1759504328451,3.6231,4464.7,4464.6,0.7477]
[1759504328750,4.1059,4464.7,4464.6,0.3114]
[1759504328952,4.50875,4464.7,4464.6,0.3114]
[1759504329751,4.1059,4464.7,4464.6,0.3114]
[1759504329950,4.1059,4464.7,4464.6,0.5354]
[1759504330254,3.6231,4464.7,4464.6,0.7477]
[1759504330439,3.6231,4464.7,4464.6,1.15055]
[1759504330640,3.6404,4464.7,4464.6,1.15055]
[1759504330951,3.6404,4464.7,4464.6,0.7477]
[1759504331946,4.1059,4464.7,4464.6,0.7477]
[1759504332151,4.50875,4464.7,4464.6,0.3114]
[1759504332449,4.1059,4464.7,4464.6,0.3114]
[1759504332646,4.1059,4464.7,4464.6,0.5354]
[1759504333450,4.11409619,4464.7,4464.6,0.7477]
[1759504333650,4.32179619,4464.7,4464.6,0.7477]
[1759504334247,4.57959619,4464.7,4464.6,0.7477]
[1759504334848,4.98244619,4464.7,4464.6,0.3114]
[1759504335044,0.40288,4464.3,4464.2,1.2077484]
[1759504335250,0.6731,4464.1,4464.0,0.3114]
[1759504335555,0.8981,4464.1,4464.0,0.3114]
[1759504335752,0.8981,4464.1,4464.0,0.5354]
[1759504335955,0.6403,4464.1,4464.0,0.6699]
[1759504336356,0.6403,4464.1,4464.0,0.8822]
[1759504336750,0.2076,4464.3,4464.2,1.15059]
[1759504337045,0.225,4464.7,4464.4,1.15057]
[1759504337352,0.47382095,4464.6,4464.5,0.8822]
[1759504337751,0.68142095,4464.6,4464.5,0.8822]
[1759504338063,0.4153,4464.1,4464.0,2.0899484]
[1759504338355,0.4153,4464.1,4464.0,0.8822]
[1759504339859,0.6403,4464.1,4464.0,0.8822]
[1759504340360,0.8981,4464.1,4464.0,0.3114]
[1759504341261,0.8981,4464.1,4464.0,0.6699]
[1759504341762,0.6403,4464.1,4464.0,0.6699]
[1759504342054,3.8809,4464.6,4464.5,0.5354]
[1759504342254,4.58062319,4464.6,4464.5,0.6699]
[1759504342658,4.09782319,4464.6,4464.5,0.8822]
[1759504342955,3.2078,4465.4,4465.2,0.7477]
[1759504344164,3.2078,4466.0,4465.2,1.9554484]
[1759504344364,0.225,4465.7,4465.2,1.9554484]
[1759504344855,0.225,4465.7,4465.2,0.7477]
[1759504345259,0.62776,4465.7,4465.2,0.7477]
[1759504345453,0.225,4465.7,4465.2,0.7477]
[1759504345659,0.225,4465.9,4465.2,0.7477]
[1759504346060,0.62774,4465.9,4465.2,0.7477]
[1759504346260,0.225,4465.9,4465.2,0.7477]
[1759504346765,0.6244,4466.4,4466.3,0.7344]
[1759504346962,1.23169327,4466.4,4466.3,0.7344]
[1759504347363,1.44849327,4466.4,4466.3,0.7344]
[1759504347770,1.45091676,4466.4,4466.3,0.7344]
[1759504348067,1.31791676,4466.4,4466.3,0.7344]
[1759504348265,1.54291676,4466.4,4466.3,0.7344]
[1759504348966,1.80061676,4466.4,4466.3,0.7344]
[1759504349167,1.80061676,4466.4,4466.3,0.53]
[1759504349564,1.80061676,4466.4,4465.5,0.3359]
[1759504349565,0.2217,4465.6,4465.5,0.3359]
[1759504349764,0.4385,4465.6,4465.5,0.3359]
[1759504349971,0.4385,4465.6,4465.3,0.40279]
[1759504350169,0.4385,4465.5,4465.4,0.53]
[1759504350364,0.4385,4465.5,4465.4,0.7344]
[1759504350672,0.6962,4465.5,4465.4,0.53]
[1759504350868,0.6962,4465.5,4464.3,1.00721]
[1759504350869,0.2577,4465.2,4464.9,0.3259]
[1759504351066,0.4385,4465.0,4464.9,0.53]
[1759504351264,0.4385,4465.0,4464.9,0.7344]
[1759504351772,0.6635,4465.0,4464.9,0.7344]
[1759504351971,0.9221,4465.0,4464.9,0.53]
[1759504352966,0.6635,4465.0,4464.9,0.7505]
[1759504353366,0.4385,4465.0,4464.9,0.7505]
[1759504353563,0.6635,4465.0,4464.9,0.7505]
[1759504353963,0.9221,4465.0,4464.9,0.53]
[1759504354276,0.9221,4465.0,4464.9,0.3259]
[1759504354474,0.83925,4464.7,4464.6,3.421]
[1759504354775,0.83925,4464.7,4464.6,3.6415]
[1759504354970,0.4364,4464.7,4464.6,3.9491]
[1759504355367,3.2078,4465.4,4464.6,0.4337]
[1759504355669,3.4275,4465.4,4465.3,0.7413]
[1759504355970,4.34319202,4465.4,4465.3,0.7413]
[1759504356271,0.4364,4465.1,4465.0,0.4333]
[1759504356475,0.92,4465.1,4465.0,0.3076]
[1759504356876,0.92,4465.1,4465.0,0.6465]
[1759504357077,0.6614,4465.1,4465.0,0.867]
[1759504357275,3.2078,4465.4,4465.3,0.7413]
[1759504357465,3.4328,4465.4,4465.3,0.7413]
[1759504357872,0.2197,4465.8,4465.7,1.14405]
[1759504358378,0.4447,4465.8,4465.7,1.14405]
[1759504358678,3.61053,4466.0,4465.8,0.3076]
[1759504358879,0.4447,4465.9,4465.8,0.7413]
[1759504359073,3.61053,4466.0,4465.9,0.3076]
[1759504359279,4.05523,4466.0,4465.9,0.7413]
[1759504359779,4.27193,4466.0,4465.9,0.7413]
[1759504359984,4.74593401,4466.0,4465.9,0.7413]
[1759504360182,4.27193,4466.0,4465.9,0.7413]
[1759504360678,4.53053,4466.0,4465.9,0.3076]
[1759504361276,5.00447364,4466.0,4465.9,0.3076]
[1759504361472,5.00445659,4466.0,4465.9,0.3076]
[1759504361679,4.53053,4466.0,4465.9,0.3076]
[1759504362377,4.1278,4466.0,4465.9,0.3076]
[1759504362585,3.8692,4466.0,4465.9,0.5208]
[1759504362775,3.6525,4466.0,4465.9,0.7413]
[1759504363976,3.4275,4466.0,4465.9,0.7413]
[1759504364181,3.6525,4466.0,4465.9,0.7413]
[1759504364384,3.6525,4466.0,4465.9,1.14404]
[1759504365879,3.2078,4466.0,4465.9,1.14404]
[1759504366073,0.62481349,4466.4,4466.3,0.2132]
[1759504366281,0.22742349,4466.4,4466.3,1.144]
[1759504366671,0.44712349,4466.4,4466.3,1.144]
[1759504367085,0.22742349,4466.4,4466.3,1.144]
[1759504367778,0.84981349,4466.4,4466.3,0.7413]
[1759504369280,0.44712349,4466.4,4466.3,1.144]
[1759504369481,0.22742349,4466.4,4466.3,1.144]
[1759504369687,0.84981349,4466.4,4466.3,0.7413]
[1759504369981,0.84151349,4466.4,4466.3,0.7413]
[1759504370382,0.40511349,4466.4,4466.3,0.7413]
[1759504371093,0.62481349,4466.4,4466.3,0.7413]
[1759504372175,0.00242349,4466.4,4466.3,1.144]
[1759504372881,0.43882349,4466.4,4466.3,1.144]
[1759504373393,0.00242349,4466.4,4466.3,1.144]
[1759504375476,0.00242349,4466.4,4466.3,6.144]
[1759504378982,3.2078,4467.7,4467.6,0.40258]
[1759504379185,3.6525,4467.7,4467.6,1.14388]
[1759504379393,3.8692,4467.7,4467.6,1.14388]
[1759504379687,3.6442,4467.7,4467.6,1.14388]
[1759504379884,3.64676061,4467.7,4467.6,1.14554807]
[1759504380389,4.04934061,4467.7,4467.6,1.14554807]
[1759504380583,4.04934061,4467.7,4467.6,0.74296807]
[1759504380782,4.04934061,4467.7,4467.6,1.14554807]
[1759504380980,4.31034061,4467.7,4467.6,0.00166807]
[1759504381285,0.83904,4467.0,4466.9,0.3076]
[1759504381591,0.6974,4466.8,4466.7,0.225]
[1759504381779,0.40267,4466.6,4466.5,0.3076]
[1759504381983,4.54427,4466.6,4466.5,0.3076]
[1759504382190,4.1416,4466.6,4466.5,0.66547698]
[1759504382488,3.6573,4466.6,4466.5,0.88467698]
[1759504382684,0.4495,4466.6,4466.5,0.88467698]
[1759504382884,0.2245,4466.6,4466.5,0.88467698]
[1759504383289,0.4482,4466.6,4466.5,0.88467698]
[1759504384283,0.7088,4466.6,4466.5,0.66547698]
[1759504385085,0.4482,4466.6,4466.5,0.66547698]
[1759504385289,0.4482,4466.6,4466.5,0.88467698]
[1759504386893,0.4482,4466.6,4466.5,1.28735698]
[1759504388098,0.6732,4466.6,4466.5,1.28735698]
[1759504390990,3.2078,4466.7,4466.6,1.15647]
[1759504391188,3.4328,4466.7,4466.6,1.15647]
[1759504391391,3.6573,4466.7,4466.6,1.15647]
[1759504391592,0.4495,4466.7,4466.6,1.15647]
[1759504392400,0.2245,4466.7,4466.6,1.15647]
[1759504392709,0.85083,4467.1,4467.0,1.28794]
[1759504393007,1.54987301,4467.1,4467.0,0.8853]
[1759504393507,1.32487301,4467.1,4467.0,0.8853]
[1759504393709,1.54987301,4467.1,4467.0,0.8853]
[1759504393903,1.81047301,4467.1,4467.0,0.1315]
[1759504394105,0.7088,4466.7,4466.6,0.93727]
[1759504394805,0.6732,4466.7,4466.6,0.93727]
[1759504395004,0.6732,4466.7,4466.6,1.15647]
[1759504395205,1.07587,4466.7,4466.6,1.15647]
[1759504395404,0.6732,4466.7,4466.6,1.15647]
[1759504395603,0.2245,4467.1,4467.0,0.97734]
[1759504395809,0.69939577,4467.1,4467.0,1.28794]
[1759504395999,0.92259577,4467.1,4467.0,1.28794]
[1759504396206,1.81082577,4467.1,4467.0,0.3106]
[1759504396608,1.81082577,4467.1,4467.0,0.71324]
[1759504396811,1.81082577,4467.1,4467.0,0.93724]
[1759504397204,1.40819577,4467.1,4467.0,1.06874]
[1759504398110,1.14759577,4467.1,4467.0,1.28794]
[1759504398314,1.55022577,4467.1,4467.0,1.28794]
[1759504399009,1.14759577,4467.1,4467.0,1.28794]
[1759504400606,1.55022577,4467.1,4467.0,0.8853]
[1759504400811,0.85087,4466.6,4466.5,0.31297698]
[1759504401110,5.01870643,4466.6,4466.5,0.53697698]
[1759504401313,5.01870643,4466.6,4466.5,0.66847698]
[1759504402012,5.01870643,4466.6,4466.5,0.84715698]
[1759504402309,5.01870643,4466.6,4466.5,0.71565698]
[1759504402508,5.01870643,4466.6,4466.5,0.93965698]
[1759504402707,4.75810643,4466.6,4466.5,1.07115698]
[1759504402908,4.75810643,4466.6,4466.5,1.29035698]
[1759504403108,4.75810643,4466.6,4466.5,0.88767698]
[1759504403612,4.35543643,4466.6,4466.5,1.29035698]
[1759504403812,3.881,4466.6,4466.5,1.29035698]
[1759504404008,3.2078,4467.1,4467.0,0.93244]
[1759504404221,0.69928155,4467.1,4467.0,1.28794]
[1759504404409,0.225,4467.1,4467.0,1.28794]
[1759504405608,1.32641761,4467.1,4467.0,0.8853]
[1759504405816,1.55011761,4467.1,4467.0,0.8853]
[1759504406117,1.14748761,4467.1,4467.0,1.28794]
[1759504407215,1.55011761,4467.1,4467.0,1.28794]
[1759504407716,0.92378761,4467.1,4467.0,1.28794]
[1759504408116,0.69928761,4467.1,4467.0,1.28794]
[1759504408415,4.738153,4467.1,4467.0,0.8853]
[1759504408718,4.738153,4467.1,4467.0,1.28794]
[1759504409011,4.513153,4467.1,4467.0,0.8853]
[1759504409316,4.513153,4467.1,4467.0,1.28794]
[1759504410019,4.371623,4467.1,4467.0,1.06874]
[1759504410517,4.110523,4467.1,4467.0,1.28504]
[1759504411015,3.682023,4467.1,4467.0,1.28504]
[1759504413215,4.374523,4467.1,4466.6,1.2077484]
[1759504413423,0.40267,4466.6,4466.5,1.34162538]
[1759504413615,1.11167,4466.6,4466.5,0.13387698]
[1759504414113,4.31947,4466.6,4466.5,0.68267698]
[1759504414618,4.31947,4466.6,4466.5,1.08535698]
[1759504417321,3.6561,4466.6,4466.5,1.29055698]
[1759504417514,4.05877,4466.6,4466.5,1.29055698]
[1759504419324,4.31947,4466.6,4466.5,1.29055698]
[1759504419821,4.79364681,4466.6,4466.5,1.29055698]
[1759504420913,4.39097681,4466.6,4466.5,1.29055698]
[1759504421119,4.13027681,4466.6,4466.5,1.29055698]
[1759504422919,4.35527681,4466.6,4466.5,1.29055698]
[1759504423125,4.61597681,4466.6,4466.5,0.73695698]
[1759504423422,4.61597681,4466.6,4466.5,0.95385698]
[1759504424129,4.39097681,4466.6,4466.5,1.07595698]
[1759504424427,4.61597681,4466.6,4466.5,1.07595698]
[1759504425017,4.35527681,4466.6,4466.5,1.28115698]
[1759504425219,0.2255,4467.1,4467.0,1.07354]
[1759504425419,1.14710159,4467.1,4467.0,1.07354]
[1759504425620,1.14710159,4467.1,4467.0,1.27874]
[1759504426325,1.54973159,4467.1,4467.0,1.27874]
[1759504426820,0.92210159,4467.1,4467.0,1.27874]
[1759504427027,0.92430159,4467.1,4467.0,1.27874]
[1759504427328,1.32693159,4467.1,4467.0,0.8761]
[1759504427528,1.14710159,4467.1,4467.0,1.27874]
[1759504428326,0.2607,4466.8,4466.7,0.73456]
[1759504428527,0.934,4466.8,4466.7,0.73456]
[1759504428722,0.934,4466.8,4466.7,0.95146]
[1759504429127,1.33666,4466.8,4466.7,0.5488]
[1759504429327,1.81039268,4466.8,4466.7,0.5488]
[1759504432426,1.54969268,4466.8,4466.7,0.754]
[1759504433928,1.14703268,4466.8,4466.7,1.15666]
[1759504434134,0.92423268,4466.8,4466.7,1.15666]
[1759504434326,1.32689268,4466.8,4466.7,1.15666]
[1759504434521,0.69923268,4466.8,4466.7,1.15666]
[1759504434727,0.4505,4466.8,4466.7,1.15666]
[1759504434923,0.85316,4466.8,4466.7,1.15666]
[1759504435230,1.3279752,4466.8,4466.7,1.15666]
[1759504435727,0.9253152,4466.8,4466.7,1.15666]
[1759504436035,0.225,4466.8,4466.7,1.15666]
[1759504436331,1.10256995,4466.8,4466.7,1.15666]
[1759504436722,0.47490995,4466.8,4466.7,1.15666]
[1759504436926,0.225,4466.9,4466.8,1.15666]
[1759504437129,1.10256838,4466.9,4466.8,1.15666]
[1759504437738,1.32806838,4466.9,4466.8,1.15666]
[1759504439142,0.92541838,4466.9,4466.8,1.15666]
[1759504439325,1.32806838,4466.9,4466.8,1.15666]
[1759504439524,1.32806838,4466.9,4466.8,0.754]
[1759504439729,1.81156838,4466.9,4466.8,0.3319]
[1759504439934,1.81156838,4466.9,4466.8,0.5488]
[1759504440640,1.81156838,4466.9,4466.8,0.95145]
[1759504441234,1.55086838,4466.9,4466.8,1.15665]
[1759504441531,1.14821838,4466.9,4466.8,1.15665]
[1759504441835,1.55086838,4466.9,4466.8,1.15665]
[1759504443438,1.81136838,4466.9,4466.8,0.3319]
[1759504443635,0.40267,4466.6,4466.5,0.12447698]
[1759504443937,4.04312,4467.2,4467.1,0.4294]
[1759504444138,4.74338378,4467.2,4467.1,0.736]
[1759504444438,5.00388378,4467.2,4467.1,0.736]
[1759504445840,4.74338378,4467.2,4467.1,0.736]
[1759504446240,0.2178,4466.6,4466.5,1.26315698]
[1759504447229,0.83534,4467.0,4466.9,0.60954]
[1759504447438,1.310689,4467.0,4466.9,1.13864]
[1759504447636,1.796189,4467.0,4466.9,0.736]
[1759504448229,1.796189,4467.0,4466.9,0.5135]
[1759504448434,1.393549,4467.0,4466.9,0.91615]
[1759504449029,1.133049,4467.0,4466.9,1.13865]
[1759504449242,0.475349,4467.0,4466.9,1.13865]
[1759504454739,3.2078,4467.2,4467.1,1.13863]
[1759504454939,3.68303835,4467.2,4467.1,1.13863]
[1759504455646,0.2178,4467.5,4467.4,0.832]
[1759504455842,0.4428,4467.5,4467.4,1.1386]
[1759504456043,0.91795171,4467.5,4467.4,1.1386]
[1759504456647,1.32054171,4467.5,4467.4,1.1386]
[1759504456947,0.91795171,4467.5,4467.4,1.1386]
[1759504458444,1.79594171,4467.5,4467.4,0.5291]
[1759504458646,1.79594171,4467.5,4467.4,0.3066]
[1759504459349,1.57094171,4467.5,4467.4,0.3066]
[1759504459546,1.79594171,4467.5,4467.4,0.3066]
[1759504459851,1.79594171,4467.5,4467.4,0.5135]
[1759504460053,1.39335171,4467.5,4467.4,0.9161]
[1759504460642,1.13285171,4467.5,4467.4,1.1386]
[1759504460946,0.91795171,4467.5,4467.4,1.1386]
[1759504462253,0.47515171,4467.5,4467.4,1.1386]
[1759504462439,0.70015171,4467.5,4467.4,1.1386]
[1759504462641,0.47515171,4467.5,4467.4,4.3464]
[1759504462845,0.22036061,4467.7,4467.6,0.736]
[1759504464047,0.00256061,4467.7,4467.6,0.736]
[1759504469852,0.00256061,4467.7,4467.6,1.13858]
[1759504473051,0.022,4467.9,4467.8,0.82896]
[1759504473259,0.022,4467.9,4467.8,1.38286]
[1759504474152,3.2078,4469.3,4467.8,1.38286]
[1759504474153,0.40247,4468.9,4468.8,0.3299]
[1759504474350,4.04913,4469.3,4469.2,0.7563]
[1759504474551,4.78849941,4469.3,4469.2,0.7563]
[1759504474947,4.74749941,4469.3,4469.2,0.7563]
[1759504475156,4.75034812,4469.3,4469.2,0.7563]
[1759504475759,4.12391812,4469.3,4469.2,1.15874]
[1759504476356,3.90001812,4469.3,4469.2,1.15874]
[1759504476548,3.68501812,4469.3,4469.2,1.15874]
[1759504476753,3.90001812,4469.3,4469.2,1.15874]
[1759504477152,0.69221812,4469.3,4469.2,1.15874]
[1759504477351,0.00284871,4469.3,4469.2,1.15874]
[1759504482254,0.00284871,4469.3,4469.2,1.38274]
[1759504483756,0.00284871,4469.3,4469.2,1.15874]
[1759504484855,0.00284871,4469.3,4469.2,0.7563]
[1759504486552,0.00284871,4469.3,4469.2,1.15874]
[1759504498169,3.2078,4470.3,4470.2,0.40235]
[1759504498375,0.7039,4470.6,4470.5,1.08582]
[1759504498577,0.91291445,4470.6,4470.5,1.29352]
[1759504498773,0.4389,4470.6,4470.5,1.29352]
[1759504499171,0.84369029,4470.6,4470.5,1.29624931]
[1759504499666,1.11159029,4470.6,4470.5,0.89392931]
[1759504499867,1.11159029,4470.6,4470.5,0.68622931]
[1759504501073,0.84369029,4470.6,4470.5,0.68622931]
[1759504501278,0.84369029,4470.6,4470.5,1.29624931]
[1759504502075,0.44138029,4470.6,4470.5,1.29624931]
[1759504502377,0.84369029,4470.6,4470.5,1.29624931]
[1759504502874,0.00248029,4470.6,4470.5,1.29624931]
[1759504504769,4.0423,4471.9,4471.8,0.7662]
[1759504504980,4.78663259,4471.9,4471.8,0.7662]
[1759504505271,4.38443259,4471.9,4471.8,0.7662]
[1759504505471,3.68243259,4471.9,4471.8,0.7662]
[1759504505673,3.41890898,4471.9,4471.8,0.7662]
[1759504506072,0.21110898,4471.9,4471.8,0.7662]
[1759504506271,0.21110898,4471.9,4471.5,0.53383]
[1759504506272,0.2092,4471.5,4471.4,0.4379]
[1759504506474,0.40222,4471.7,4471.6,0.2227]
[1759504506674,0.61142,4471.7,4471.6,0.4379]
[1759504506976,0.61142,4471.7,4471.6,0.7662]
[1759504506977,1.10422,4471.7,4471.6,0.7662]
[1759504507679,0.702,4471.7,4471.6,0.7662]
[1759504507879,0.4323,4471.7,4471.6,0.7662]
[1759504508074,0.702,4471.7,4471.6,0.7662]
[1759504508479,0.4323,4471.7,4471.6,0.7662]
[1759504508676,3.20970898,4471.9,4471.8,0.2227]
[1759504508880,3.20970898,4471.9,4471.8,0.7662]
[1759504509078,3.41890898,4471.9,4471.8,0.7662]
[1759504510083,0.21110898,4471.9,4471.8,0.7662]
[1759504513485,0.00190898,4471.9,4471.8,0.7662]
[1759504513886,1.59227086,4473.8,4472.2,1.00543]
[1759504514088,1.59227086,4474.3,4473.7,3.974]
[1759504514283,0.2092,4474.3,4474.2,3.974]
[1759504514477,0.4323,4474.3,4474.2,0.7662]
[1759504514684,0.7039,4474.3,4474.0,0.1316]
[1759504514983,0.2716,4474.1,4474.0,0.00158049]
[1759504515285,0.7039,4474.1,4474.0,0.32988049]
[1759504515489,0.4323,4474.1,4474.0,0.89938049]
[1759504515987,0.2092,4474.1,4474.0,0.89938049]
[1759504516188,0.00162621,4474.3,4474.0,1.30138049]
[1759504516383,0.00162621,4474.3,4474.2,0.7662]
[1759504516887,0.43392621,4474.3,4474.2,0.7662]
[1759504517695,0.7039,4474.1,4474.0,0.32988049]
[1759504517890,0.7039,4474.1,4474.0,0.55258049]
[1759504518292,0.4323,4474.1,4474.0,0.89938049]
[1759504518490,0.00162621,4474.3,4474.2,0.83989]
[1759504518694,0.00162621,4474.3,4474.2,1.16819]
[1759504519691,0.00162621,4474.3,4474.2,4.37599]
[1759504520094,0.00162621,4474.3,4474.2,9.37599]
[1759504520290,0.063,4475.7,4475.3,0.4379]
[1759504520499,0.2722,4475.7,4475.6,0.7662]
[1759504520697,0.2092,4475.7,4475.6,0.7662]
[1759504521299,0.00254769,4475.7,4475.6,0.7662]
[1759504521988,0.00254769,4475.7,4475.3,0.3283]
[1759504521989,8.21034769,4475.7,4475.3,0.3283]
[1759504522196,0.61111,4475.1,4475.0,0.6826]
[1759504522395,0.83421,4475.1,4475.0,0.6826]
[1759504522587,1.10741,4475.1,4475.0,0.551]
[1759504522792,1.10741,4475.1,4475.0,0.3283]
[1759504522992,0.2092,4474.4,4474.3,0.3283]
[1759504523197,0.83427,4474.4,4474.3,0.7662]
[1759504523994,0.00254769,4475.7,4475.6,0.7662]
[1759504524295,0.00254769,4475.7,4475.6,3.974]
[1759504524697,0.00254769,4475.7,4475.6,0.7662]
[1759504524996,0.00254769,4475.7,4475.6,4.37586]
[1759504529697,0.4378,4477.1,4477.0,0.674]
[1759504529896,0.4378,4477.1,4477.0,0.8839]
[1759504530094,0.2209,4476.8,4476.7,0.3367]
[1759504530399,0.83956,4476.8,4476.7,0.7579]
[1759504530601,0.00189648,4476.8,4476.7,0.7579]
[1759504530804,0.00189648,4476.8,4476.7,0.9819]
[1759504531398,0.00189648,4476.8,4476.7,5.9819]
[1759504532300,0.022,4477.9,4477.7,0.81908]
[1759504532496,0.022,4477.9,4477.8,0.7381]
[1759504533209,0.62615,4479.2,4479.1,0.2096]
[1759504533405,0.22685968,4479.2,4479.1,0.7381]
[1759504533803,0.75135968,4479.2,4478.5,3.5641]
[1759504534003,0.4495,4478.8,4478.7,0.5303]
[1759504534701,0.00225968,4479.2,4479.1,0.4174]
[1759504535008,0.00225968,4479.2,4479.1,0.7381]
[1759504536404,1.30324,4480.2,4479.1,0.7381]
[1759504536405,0.40143,4480.4,4480.3,0.7381]
[1759504536610,0.85093,4480.4,4480.3,0.7381]
[1759504537308,0.45108664,4480.4,4480.3,0.7381]
[1759504538812,0.75298664,4480.4,4480.3,0.5303]
[1759504539014,0.45108664,4480.4,4480.3,0.5303]
[1759504539208,0.67508664,4480.4,4480.3,0.7381]
[1759504541109,0.4495,4479.7,4479.6,3.7381]
[1759504541302,0.851,4479.7,4479.6,3.7381]
[1759504541509,0.851,4479.7,4479.6,3.9459]
[1759504542010,0.4015,4479.7,4479.6,3.9459]
[1759504542611,0.62548,4479.9,4479.8,0.7381]
[1759504543006,0.85098,4479.9,4479.8,0.7381]
[1759504543210,0.85098,4479.9,4479.5,0.1323]
[1759504543211,1.15291,4479.6,4479.5,0.3419]
[1759504543415,0.85101,4479.6,4479.5,0.6626]
[1759504543614,0.85101,4479.6,4479.5,0.8704]
[1759504545015,0.85101,4479.6,4479.0,3.3401]
[1759504545016,0.85105,4479.1,4479.0,0.5497]
[1759504545204,1.07505,4479.1,4479.0,0.5497]
[1759504545409,0.85105,4479.1,4479.0,0.8704]
[1759504545607,1.07505,4479.1,4479.0,0.8704]
[1759504546217,1.37695,4479.1,4479.0,0.3207]
[1759504546512,0.40159,4478.7,4478.4,3.2078]
[1759504546718,0.4495,4478.7,4478.6,0.5303]
[1759504547217,0.7514,4478.7,4478.6,0.5303]
[1759504547610,0.4495,4478.5,4478.4,3.2078]
[1759504547921,0.9754,4478.5,4478.4,3.5285]
[1759504549121,0.4495,4478.0,4477.9,0.3207]
[1759504549317,0.9754,4478.0,4477.9,0.3207]
[1759504549715,0.9754,4478.0,4477.9,0.5303]
[1759504550116,0.9754,4478.0,4477.9,0.7381]
[1759504550117,0.6735,4478.0,4477.9,0.7381]
[1759504551118,0.7514,4477.9,4477.8,0.00225046]
[1759504552623,0.9754,4477.9,4477.8,0.00225046]
[1759504553528,0.4495,4476.7,4476.6,0.3207]
[1759504553728,0.9754,4476.7,4476.6,0.3207]
[1759504554433,0.97821133,4476.7,4476.6,0.3227906]
[1759504555224,0.75421133,4476.7,4476.6,0.3227906]
[1759504555424,0.75421133,4476.7,4476.6,0.7401906]
[1759504555425,0.00281133,4476.7,4476.6,0.7401906]
[1759504560434,0.00281133,4476.7,4476.6,1.1419606]
[1759504560838,0.00281133,4476.7,4476.6,6.1419606]
[1759504561037,0.2246,4478.0,4477.9,0.5303]
[1759504561335,1.07515,4478.0,4477.9,0.5303]
[1759504561836,1.15591,4477.3,4477.2,3.5285]
[1759504562136,1.37991,4477.3,4477.2,3.7381]
[1759504562334,1.07521,4477.3,4477.2,0.5303]
[1759504562631,1.00415,4477.9,4477.2,0.7434]
[1759504562834,0.2143,4477.8,4477.7,0.7447]
[1759504563031,0.6449,4477.8,4477.7,0.7447]
[1759504564630,1.12718,4477.6,4477.5,0.318]
[1759504564833,0.82263,4477.1,4477.0,0.877]
[1759504565338,0.40173,4477.1,4477.0,0.877]
[1759504566535,0.61603,4477.1,4477.0,0.877]
[1759504566841,0.82263,4477.1,4477.0,0.877]
[1759504567536,1.04663,4477.1,4477.0,0.877]
[1759504567735,0.84003,4477.1,4477.0,0.877]
[1759504568327,1.04663,4477.1,4477.0,0.877]
[1759504568736,0.84003,4477.1,4477.0,0.877]
[1759504568927,0.62573,4477.1,4477.0,0.877]
[1759504569132,0.40173,4477.1,4477.0,0.877]
[1759504570832,0.61603,4477.1,4477.0,0.877]
[1759504571233,0.40173,4477.1,4477.0,0.877]
[1759504572834,0.61603,4477.1,4477.0,0.877]
[1759504573036,0.40173,4477.1,4477.0,0.877]
[1759504573232,0.61603,4477.1,4477.0,0.877]
[1759504574035,0.82266,4476.7,4476.6,0.4287906]
[1759504574239,0.40176,4476.7,4476.6,0.4287906]
[1759504574435,1.04666,4476.7,4476.6,0.4287906]
[1759504574737,1.35126,4476.7,4476.6,0.3200906]
[1759504575043,1.12726,4476.7,4476.6,0.0020906]
[1759504575240,1.35126,4476.7,4476.6,0.0020906]
[1759504575736,1.35126,4476.7,4476.0,0.1323]
[1759504575737,0.82275,4475.8,4475.7,3.2078]
[1759504575943,1.04675,4475.8,4475.7,3.9525]
[1759504576638,1.04675,4475.8,4475.7,3.95473818]